bitfinex-derivatives/quotes_ETHF0:USTF0_20251203
["timestamp","ask_amount","ask_price","bid_price","bid_amount"]
[1764758230282,0.4437,3061.0,3060.9,0.99752]
[1764758230791,1.1779,3061.0,3060.9,0.99752]
[1764758230990,4.74209597,3061.4,3061.3,0.8342]
[1764758231186,4.74209597,3061.4,3061.3,0.4171]
[1764758231487,3.94599597,3061.4,3061.3,0.8342]
[1764758231688,4.74209597,3061.4,3061.3,0.8342]
[1764758231891,0.7342,3061.1,3061.0,2.17191782]
[1764758232088,1.5303,3061.1,3061.0,0.16331]
[1764758232687,1.5303,3060.8,3060.7,2.7613785]
[1764758233090,3.2078,3060.9,3060.7,2.7613785]
[1764758233091,3.2078,3060.9,3060.8,0.8342]
[1764758233293,3.942,3060.9,3060.8,0.8342]
[1764758233693,4.7381,3060.9,3060.8,0.8342]
[1764758233991,4.7381,3060.9,3060.8,0.4171]
[1764758234392,1.5303,3060.8,3060.7,2.9247085]
[1764758234582,1.5303,3060.8,3060.7,3.3418085]
[1764758234783,1.5303,3060.8,3060.7,0.16333]
[1764758234988,1.5303,3060.6,3060.5,2.3442785]
[1764758235298,1.5303,3060.6,3060.5,4.35288632]
[1764758235491,1.5303,3060.6,3060.5,3.68202632]
[1764758235888,1.5303,3060.6,3060.5,2.5076185]
[1764758236089,1.5303,3060.4,3060.3,5.55550986]
[1764758236297,1.5303,3060.4,3060.3,0.00343136]
[1764758240786,1.5303,3060.4,3060.3,1.00098136]
[1764758240990,0.7342,3060.4,3060.3,1.00098136]
[1764758242098,0.4437,3060.5,3060.4,0.99754]
[1764758242299,1.974,3060.5,3060.4,0.99754]
[1764758242499,1.974,3060.5,3060.4,0.58044]
[1764758243202,1.974,3060.5,3060.4,0.16334]
[1764758245600,2.70687687,3060.5,3060.4,1.92261032]
[1764758248302,2.70687687,3060.5,3060.4,2.33971032]
[1764758248603,2.70687687,3060.5,3060.4,1.92261032]
[1764758249806,2.70687687,3060.5,3060.3,0.00343136]
[1764758249807,1.5303,3060.4,3060.3,1.76270168]
[1764758250103,2.26317687,3060.4,3060.3,1.76270168]
[1764758250509,2.26317687,3060.4,3060.3,2.17980168]
[1764758250711,2.26317687,3060.4,3060.3,2.59690168]
[1764758251106,2.26317687,3060.4,3060.3,2.76025168]
[1764758251513,1.5303,3060.4,3060.3,1.00098136]
[1764758252613,4.3857,3060.5,3060.4,0.99754]
[1764758252816,4.3857,3060.5,3060.3,0.00343136]
[1764758252817,4.7381,3060.9,3060.8,0.4171]
[1764758253117,5.47092258,3060.9,3060.8,2.00860782]
[1764758253314,5.47092258,3060.9,3060.8,1.59150782]
[1764758253620,5.47092258,3060.9,3060.8,1.17440782]
[1764758254113,5.47092258,3060.9,3060.8,2.00820782]
[1764758254308,5.47092258,3060.9,3060.8,1.59130782]
[1764758254514,1.5559,3060.8,3060.7,1.92342652]
[1764758254714,2.28872258,3060.8,3060.7,1.92342652]
[1764758254913,2.28872258,3060.8,3060.7,2.34032652]
[1764758255413,2.28872258,3060.8,3060.7,1.92342652]
[1764758257917,2.28872258,3060.8,3060.7,0.16333]
[1764758258615,2.28872258,3060.8,3060.6,1.76009652]
[1764758258616,1.5467,3060.7,3060.6,1.76009652]
[1764758258923,2.27952258,3060.7,3060.6,1.76009652]
[1764758264826,2.27952258,3060.7,3060.6,2.17719652]
[1764758265326,2.27952258,3060.7,3060.6,1.76009652]
[1764758266727,1.5467,3060.6,3060.5,1.76009652]
[1764758266920,2.27952258,3060.6,3060.5,1.76009652]
[1764758267121,1.5467,3060.4,3060.3,0.00343136]
[1764758267323,2.27952258,3060.4,3060.3,0.00343136]
[1764758268125,2.033,3060.0,3059.9,3.2078]
[1764758268320,1.5467,3059.7,3059.6,2.3442785]
[1764758268625,1.5467,3059.6,3059.5,2.3442785]
[1764758269319,1.5467,3059.6,3059.5,0.00386288]
[1764758269723,1.5467,3059.6,3059.5,1.55316288]
[1764758270123,1.5467,3059.6,3059.5,2.7275707]
[1764758270626,1.5467,3059.6,3059.5,3.1811707]
[1764758270627,0.7362,3059.6,3059.5,3.1811707]
[1764758270830,1.5467,3059.6,3059.5,2.7275707]
[1764758272728,1.5467,3059.6,3059.5,1.9218707]
[1764758272923,3.69899547,3060.0,3059.5,2.7275707]
[1764758273129,2.28008091,3059.9,3059.8,1.5493]
[1764758273528,1.5467,3059.6,3059.5,2.7275707]
[1764758274730,1.5467,3059.6,3059.5,1.55316288]
[1764758276331,1.5467,3059.6,3059.5,2.70205077]
[1764758277226,1.5467,3059.6,3059.5,0.00386288]
[1764758277530,2.28770039,3059.6,3059.5,0.00386288]
[1764758278130,2.033,3059.5,3059.4,1e-08]
[1764758279129,2.033,3059.5,3059.4,0.00263709]
[1764758279326,2.77403745,3059.5,3059.4,0.00263709]
[1764758280536,3.92292534,3059.5,3059.4,0.00263709]
[1764758281038,2.033,3059.0,3058.9,9.20542]
[1764758281433,2.033,3059.0,3058.9,10.75472]
[1764758281933,1.5467,3059.0,3058.9,10.75472]
[1764758282138,1.55026034,3059.0,3058.9,10.75715788]
[1764758282437,1.55026034,3059.0,3058.9,0.16585788]
[1764758282438,2.03656034,3059.0,3058.9,0.16585788]
[1764758283936,2.03656034,3059.0,3058.9,0.00243788]
[1764758284136,1.9311,3058.5,3058.4,2.3442785]
[1764758284330,1.9311,3058.5,3058.0,4.25488762]
[1764758284331,1.4852,3058.1,3058.0,3.29683691]
[1764758284531,4.693,3058.1,3058.0,3.29683691]
[1764758284727,4.693,3058.1,3058.0,1.70965841]
[1764758285239,1.4852,3058.1,3058.0,1.71323057]
[1764758285432,1.4852,3058.1,3058.0,1.47718846]
[1764758285630,1.4852,3058.1,3058.0,2.26848846]
[1764758286535,1.49010364,3058.4,3058.3,1.5484]
[1764758286734,2.23099704,3058.4,3058.3,2.69728789]
[1764758287238,1.4852,3058.3,3058.2,0.95476]
[1764758287437,2.2260934,3058.3,3058.2,0.95476]
[1764758287634,2.2260934,3058.3,3058.2,1.71186]
[1764758287833,2.2260934,3058.3,3058.2,0.16346]
[1764758289037,1.4852,3058.3,3058.2,0.16346]
[1764758289237,2.2260978,3058.3,3058.2,0.16346]
[1764758290232,1.4852,3058.1,3058.0,0.95613057]
[1764758290440,4.693,3058.1,3058.0,0.95613057]
[1764758291131,4.693,3058.1,3058.0,0.16483057]
[1764758291132,5.43385627,3058.1,3058.0,0.16483057]
[1764758292124,5.43385627,3058.1,3057.5,5.5520785]
[1764758292125,1.4852,3057.6,3057.5,3.2078]
[1764758292333,1.4852,3057.6,3057.5,3.9991]
[1764758293036,0.7372,3057.6,3057.5,4.7562]
[1764758293241,0.7372,3057.6,3057.5,4.75995787]
[1764758293741,1.4852,3057.6,3057.5,4.75995787]
[1764758294347,1.4852,3057.6,3057.5,4.92345787]
[1764758294530,1.4852,3057.6,3057.5,3.37505787]
[1764758294731,1.4852,3057.6,3057.5,3.21155787]
[1764758294930,0.7372,3057.6,3057.5,4.75995787]
[1764758295233,1.4852,3057.6,3057.5,5.90884576]
[1764758295740,1.4852,3057.6,3057.5,0.00375787]
[1764758296440,2.22602398,3057.6,3057.5,0.00375787]
[1764758297436,2.22602398,3057.6,3057.5,0.79505787]
[1764758297640,2.22602398,3057.6,3057.5,0.00375787]
[1764758298146,2.22602398,3057.6,3057.5,0.79505787]
[1764758298331,2.22602398,3057.6,3057.5,1.55215787]
[1764758298642,2.22602398,3057.6,3057.5,0.00375787]
[1764758300146,2.22602398,3057.6,3057.5,0.79505787]
[1764758300445,2.22602398,3057.6,3057.5,0.00375787]
[1764758301736,2.22602398,3057.6,3057.0,5.5520785]
[1764758301737,1.4852,3057.1,3057.0,5.5520785]
[1764758301938,1.4852,3057.1,3057.0,3.2078]
[1764758302447,1.4852,3057.1,3057.0,4.7562]
[1764758302647,1.4852,3057.5,3057.4,1.5484]
[1764758302846,1.4852,3057.5,3057.4,1.7119]
[1764758302847,2.22623177,3057.5,3057.4,1.7119]
[1764758304043,0.7372,3057.5,3057.4,1.7119]
[1764758304245,1.4852,3057.5,3057.4,1.7119]
[1764758304547,1.4852,3057.2,3057.1,1.5484]
[1764758305436,1.4852,3057.2,3057.1,0.7913]
[1764758305941,1.9311,3057.5,3057.4,1.5484]
[1764758306247,2.67216314,3057.5,3057.4,1.5484]
[1764758306750,0.74106314,3057.5,3057.4,1.7119]
[1764758306947,1.4852,3057.6,3057.5,1.5484]
[1764758307150,2.2263086,3057.6,3057.5,1.5484]
[1764758307340,1.4852,3057.6,3057.5,0.9548]
[1764758307651,3.2078,3057.7,3057.6,1.5484]
[1764758307852,3.2078,3057.7,3057.6,2.69728789]
[1764758308052,3.945,3057.7,3057.6,2.69728789]
[1764758308742,3.2078,3057.7,3057.6,2.69728789]
[1764758308936,4.693,3057.7,3057.6,2.69728789]
[1764758309137,5.43384214,3057.7,3057.6,2.69728789]
[1764758310145,5.43384214,3057.7,3057.6,1.5484]
[1764758310350,5.43384214,3057.7,3057.6,0.7913]
[1764758310748,0.74084214,3057.7,3057.6,1.71189]
[1764758311145,0.00490364,3058.4,3057.9,1.71188]
[1764758311448,0.00490364,3058.4,3058.3,1.71185]
[1764758311644,1.49010364,3058.4,3058.3,1.5484]
[1764758311950,1.49010364,3058.4,3058.3,0.7913]
[1764758312350,1.4852,3058.1,3058.0,2.0295]
[1764758312550,1.4852,3058.1,3058.0,2.19297]
[1764758313150,1.4852,3058.1,3058.0,0.95477]
[1764758313646,1.4852,3058.1,3058.0,1.73587]
[1764758316047,1.4852,3058.1,3058.0,0.95477]
[1764758316751,1.4852,3058.1,3058.0,0.16347]
[1764758316947,1.4852,3058.1,3058.0,1.68277]
[1764758317250,1.5282,3058.1,3058.0,1.68277]
[1764758317654,1.5282,3058.1,3058.0,0.90697]
[1764758319257,1.5282,3058.1,3058.0,0.16347]
[1764758320159,1.5282,3058.1,3058.0,1.68277]
[1764758320354,1.54190364,3058.4,3058.3,1.5193]
[1764758320552,1.54190364,3058.4,3058.3,0.7435]
[1764758322145,0.00490364,3058.4,3058.3,1.5193]
[1764758322453,0.00490364,3058.4,3058.3,1.68275]
[1764758322861,4.7448,3058.9,3058.8,1.5193]
[1764758323158,1.537,3058.3,3058.2,1.5193]
[1764758323350,0.746,3058.3,3058.2,1.68276]
[1764758323549,0.4771,3058.5,3058.4,1.5193]
[1764758323550,0.746,3058.5,3058.4,1.5193]
[1764758323861,1.537,3058.5,3058.4,1.5193]
[1764758324652,0.746,3058.5,3058.4,1.5193]
[1764758324859,1.537,3058.5,3058.4,1.5193]
[1764758325058,1.54190364,3058.8,3058.7,1.5193]
[1764758325257,1.537,3058.6,3058.5,1.5193]
[1764758325758,0.00490364,3058.8,3058.3,1.68275]
[1764758325953,1.54190364,3058.8,3058.7,0.7435]
[1764758326152,1.54190364,3058.8,3058.3,0.16345]
[1764758326344,1.54190364,3058.8,3058.3,1.68275]
[1764758326345,0.746,3058.4,3058.3,1.68275]
[1764758327256,1.537,3058.4,3058.3,1.68275]
[1764758329354,1.537,3058.4,3058.3,0.90695]
[1764758329559,1.537,3058.4,3058.3,1.68275]
[1764758329966,0.746,3058.4,3058.3,1.68275]
[1764758330166,1.537,3058.4,3058.3,1.68275]
[1764758330460,1.537,3058.4,3058.3,1.31306744]
[1764758331259,1.537,3058.4,3058.3,2.83236744]
[1764758332249,1.54190364,3058.8,3058.7,1.5193]
[1764758332552,1.54190364,3058.8,3058.7,0.7435]
[1764758332853,1.537,3058.4,3058.3,1.68275]
[1764758333055,1.537,3058.4,3058.3,2.83236744]
[1764758335055,0.75090364,3058.8,3058.7,1.5193]
[1764758335259,1.54190364,3058.8,3058.7,2.66891744]
[1764758335768,0.75090364,3058.8,3058.7,2.66891744]
[1764758336357,0.00490364,3058.8,3058.7,2.85777973]
[1764758336559,0.00356034,3059.0,3058.9,1.68272]
[1764758339061,3.21270364,3059.3,3059.2,1.68271]
[1764758339257,0.00490364,3059.3,3059.2,4.61564225]
[1764758340061,0.00869938,3059.3,3059.2,4.61852338]
[1764758340361,0.00869938,3059.3,3059.2,2.86064086]
[1764758341161,0.75469938,3059.3,3059.2,1.68559113]
[1764758341360,1.54569938,3059.3,3059.2,1.68559113]
[1764758341762,0.00869938,3059.3,3059.2,3.44498477]
[1764758342068,0.00869938,3059.3,3059.2,1.68559113]
[1764758342461,3.2078,3059.7,3059.6,1.68269]
[1764758342771,3.2078,3060.2,3059.6,2.85773973]
[1764758342959,1.537,3059.7,3059.6,0.16339]
[1764758343263,1.5198,3059.3,3059.2,0.74638113]
[1764758343464,1.52387604,3059.3,3059.2,0.00288113]
[1764758343762,2.0039,3059.0,3058.9,0.00490364]
[1764758344762,2.0039,3059.0,3058.9,0.81199055]
[1764758345065,1.56907604,3059.3,3059.2,0.8047]
[1764758345261,1.56907604,3059.3,3058.9,1.59509055]
[1764758345262,0.7912,3059.0,3058.9,1.59509055]
[1764758345461,0.7912,3059.0,3058.9,1.75851055]
[1764758345863,1.56907604,3059.3,3059.2,1.5878]
[1764758346770,1.56907604,3059.3,3059.2,0.8047]
[1764758346968,1.565,3059.0,3058.9,1.75851055]
[1764758347772,0.7912,3059.0,3058.9,1.75851055]
[1764758347971,1.56907604,3059.3,3059.2,0.8047]
[1764758348271,1.56907604,3059.3,3059.2,1.5878]
[1764758348873,0.00407604,3059.3,3059.2,1.5878]
[1764758349279,1.56907604,3059.3,3059.2,1.5878]
[1764758349465,1.56907604,3059.3,3059.2,1.75121]
[1764758349970,0.79527604,3059.3,3059.2,1.75121]
[1764758350274,0.00407604,3059.3,3059.2,1.75121]
[1764758351074,0.00490364,3059.6,3059.5,2.21409]
[1764758351268,0.00490364,3059.6,3059.5,3.38913973]
[1764758351973,0.79610364,3059.6,3059.5,3.38913973]
[1764758352171,0.00724815,3059.6,3059.5,3.38913973]
[1764758354483,1.565,3060.3,3060.2,1.5878]
[1764758354666,0.7912,3060.3,3060.2,1.5878]
[1764758354863,0.7912,3060.2,3060.1,2.92620973]
[1764758355067,1.565,3060.2,3060.1,2.92620973]
[1764758355274,0.79426051,3060.2,3060.1,2.92620973]
[1764758356872,0.00306051,3060.2,3060.1,2.92620973]
[1764758358172,0.79610364,3060.5,3060.4,1.5878]
[1764758358474,1.56990364,3060.5,3060.4,1.5878]
[1764758358676,2.00880364,3060.5,3060.4,0.8047]
[1764758358878,2.00880364,3060.5,3060.2,0.16335]
[1764758358879,1.565,3060.3,3060.2,1.75115]
[1764758359079,1.56731246,3060.3,3060.2,1.75115]
[1764758359480,0.00231246,3060.3,3060.2,1.75115]
[1764758359978,0.00490364,3060.5,3060.4,1.5878]
[1764758360171,0.00490364,3060.5,3060.4,2.76284973]
[1764758360878,0.7912,3060.4,3060.3,1.75115]
[1764758361978,0.80005149,3060.5,3060.4,1.5878]
[1764758363978,0.80005149,3060.5,3060.4,1.75114]
[1764758364183,0.00885149,3060.5,3060.4,1.75114]
[1764758364977,2.01275149,3060.5,3060.4,0.16334]
[1764758365175,2.0039,3060.0,3059.9,4.17587]
[1764758365383,2.0039,3060.0,3059.9,3.2078]
[1764758365879,2.0039,3060.0,3059.9,0.8047]
[1764758371089,1.565,3059.7,3059.6,1.75119]
[1764758372586,0.7912,3059.7,3059.6,1.75119]
[1764758373288,1.565,3059.7,3059.6,1.75119]
[1764758373491,1.565,3059.7,3059.6,0.96809]
[1764758374689,1.565,3059.7,3059.6,0.16339]
[1764758374887,1.565,3059.7,3059.6,0.89939]
[1764758375190,1.565,3059.7,3059.6,1.64799]
[1764758375891,1.565,3059.7,3059.6,0.16339]
[1764758376096,2.0344,3059.5,3059.4,3.2078]
[1764758376485,2.0344,3059.5,3059.4,3.9438]
[1764758377793,1.5167,3059.4,3059.3,0.7842]
[1764758379995,1.5167,3059.4,3059.3,1.5217]
[1764758381200,0.7681,3059.4,3059.3,1.5217]
[1764758381393,3.9759,3059.7,3059.6,1.5217]
[1764758381701,4.7245,3059.7,3059.6,1.5217]
[1764758381995,4.7245,3059.7,3059.6,0.7842]
[1764758382998,1.5167,3059.5,3059.4,1.6851]
[1764758383199,1.9761,3059.5,3059.4,0.1634]
[1764758383993,1.5167,3059.2,3059.1,2.54092034]
[1764758385492,1.5167,3059.1,3059.0,3.2078]
[1764758386003,0.4594,3059.5,3058.9,0.00729055]
[1764758386004,1.9761,3059.0,3058.9,0.00729055]
[1764758388596,1.2275,3059.0,3058.9,0.79149055]
[1764758388796,4.7245,3059.3,3059.2,0.7842]
[1764758389098,4.7245,3059.3,3059.2,1.5217]
[1764758389797,1.5167,3059.1,3059.0,0.16342]
[1764758389987,0.7681,3059.1,3059.0,1.68512]
[1764758390189,1.5167,3059.1,3059.0,1.68512]
[1764758390397,0.7681,3059.1,3059.0,1.68512]
[1764758390601,1.5167,3059.1,3059.0,1.68512]
[1764758391999,3.2078,3059.3,3059.2,1.5217]
[1764758392000,4.7245,3059.3,3059.2,1.5217]
[1764758392197,3.9759,3059.3,3059.2,1.5217]
[1764758392603,4.7245,3059.3,3059.2,1.5217]
[1764758394801,1.5167,3059.1,3059.0,0.90092]
[1764758394995,1.5167,3059.1,3059.0,1.68512]
[1764758395297,1.5167,3059.1,3059.0,0.94762]
[1764758396905,1.5167,3059.1,3059.0,1.68512]
[1764758397104,0.7681,3059.1,3059.0,1.68512]
[1764758398191,0.7681,3059.1,3059.0,2.12502]
[1764758399603,1.5167,3059.1,3059.0,2.12502]
[1764758399804,4.7245,3059.3,3059.2,1.5217]
[1764758400101,1.5167,3059.1,3059.0,1.68512]
[1764758400701,1.5167,3059.1,3059.0,0.16342]
[1764758402509,3.2078,3059.3,3059.2,0.7842]
[1764758402701,4.7245,3059.3,3059.2,1.5217]
[1764758403308,0.7413,3059.5,3059.4,1.7013]
[1764758404016,1.5071,3059.5,3059.4,1.7013]
[1764758404608,1.5071,3058.5,3058.2,2.3442785]
[1764758404815,1.5071,3058.3,3057.8,0.16348]
[1764758405106,1.5071,3058.3,3058.2,0.7458]
[1764758405814,1.51085557,3058.3,3058.2,1.54183374]
[1764758406004,0.74505557,3058.3,3058.2,1.54183374]
[1764758406203,1.51085557,3058.3,3058.2,0.74973374]
[1764758407107,1.51085557,3058.3,3058.2,1.54183374]
[1764758407709,0.00375557,3058.3,3058.2,1.70529374]
[1764758408108,0.00490364,3058.6,3058.2,1.70529374]
[1764758408109,0.00490364,3058.6,3058.5,2.0089]
[1764758409311,1.51575291,3058.6,3058.5,2.0089]
[1764758409511,1.51575291,3058.6,3058.5,2.17234]
[1764758410716,0.74995291,3058.6,3058.5,2.17234]
[1764758411612,0.00865291,3058.6,3058.5,2.17234]
[1764758413811,3.2078,3059.3,3058.9,0.16342]
[1764758414016,3.9491,3059.3,3059.2,1.5379]
[1764758414220,4.7149,3059.3,3059.2,1.5379]
[1764758415011,4.71875913,3059.3,3059.2,1.5379]
[1764758415906,4.71875913,3059.3,3059.2,0.7458]
[1764758416117,1.5071,3059.1,3059.0,2.17232]
[1764758416413,1.5071,3059.1,3058.5,0.63444]
[1764758416615,1.5071,3058.6,3058.5,0.16344]
[1764758416808,1.5071,3058.6,3058.5,0.90924]
[1764758417217,1.5071,3058.6,3058.5,0.16344]
[1764758417427,1.5071,3058.6,3058.5,0.90924]
[1764758418012,3.2078,3058.8,3058.0,8.883]
[1764758418013,1.5071,3058.3,3058.2,0.00393374]
[1764758418308,2.25995024,3058.3,3058.2,0.00393374]
[1764758418509,0.75285024,3058.3,3058.2,1.54183374]
[1764758418815,0.7413,3058.3,3058.2,1.54183374]
[1764758419023,3.9491,3058.4,3058.3,1.5379]
[1764758419211,1.5071,3058.3,3058.2,0.91319374]
[1764758419417,1.5071,3058.3,3058.2,1.70529374]
[1764758419919,1.5071,3058.3,3058.2,0.16739374]
[1764758421518,0.7413,3058.3,3058.2,1.70529374]
[1764758421722,1.5071,3058.3,3058.2,0.00393374]
[1764758422016,1.946,3058.0,3057.9,0.00490364]
[1764758422220,5.1538,3058.0,3057.9,0.00490364]
[1764758422808,5.1538,3058.0,3057.9,0.00872233]
[1764758426915,11.1538,3058.0,3057.9,0.00872233]
[1764758427116,5.1538,3058.0,3057.9,0.00872233]
[1764758434224,1.5014,3057.2,3057.1,3.2078]
[1764758434421,1.5014,3057.2,3057.1,4.7615]
[1764758434721,1.5014,3057.2,3057.1,3.9582]
[1764758435126,1.5014,3057.2,3057.1,4.7615]
[1764758435315,0.00490364,3057.5,3057.1,4.76493565]
[1764758435522,0.74900364,3057.5,3057.4,0.7504]
[1764758435827,1.50910364,3057.5,3057.4,0.7504]
[1764758436628,0.00490364,3057.5,3057.4,1.5537]
[1764758436925,0.77460364,3057.5,3057.4,1.5537]
[1764758437328,1.53260364,3057.5,3057.4,1.5537]
[1764758438430,0.77460364,3057.5,3057.4,1.5537]
[1764758439532,1.53260364,3057.5,3057.4,1.5537]
[1764758440236,1.53260364,3057.5,3057.4,0.7504]
[1764758440428,1.5277,3057.2,3057.1,0.16695565]
[1764758440827,0.00490364,3057.5,3057.4,1.499]
[1764758441137,1.53260364,3057.5,3057.4,1.499]
[1764758441331,1.5277,3057.2,3057.1,1.66595565]
[1764758441837,0.7697,3057.2,3057.1,1.66595565]
[1764758442135,1.53260364,3057.5,3057.4,1.499]
[1764758442329,0.7697,3057.2,3057.1,1.66595565]
[1764758442732,1.53260364,3057.5,3057.4,1.499]
[1764758442931,1.53260364,3057.5,3057.4,0.7671]
[1764758443333,1.53260364,3057.5,3057.4,1.499]
[1764758443629,0.00490364,3057.5,3057.4,1.499]
[1764758443832,0.77460364,3057.5,3057.4,1.499]
[1764758445436,0.00490364,3057.5,3057.4,1.6625]
[1764758445939,0.77460364,3057.5,3057.4,1.6625]
[1764758446433,1.53260364,3057.5,3057.4,1.6625]
[1764758449139,0.77460364,3057.5,3057.4,1.6625]
[1764758449344,0.00490364,3057.5,3057.4,1.6625]
[1764758450444,1.53260364,3057.5,3057.4,1.6625]
[1764758451243,2.28753299,3057.5,3057.4,1.6625]
[1764758451845,0.75983299,3057.5,3057.4,1.6625]
[1764758452045,2.28753299,3057.5,3057.4,1.6625]
[1764758452434,2.28753299,3057.5,3057.4,0.9306]
[1764758452840,1.5277,3057.2,3057.1,0.77053565]
[1764758453044,2.28262935,3057.2,3057.1,0.77053565]
[1764758453545,0.75492935,3057.2,3057.1,1.50243565]
[1764758453746,1.5277,3057.4,3057.3,1.499]
[1764758454047,2.28252009,3057.4,3057.3,0.7671]
[1764758455345,1.52452009,3057.4,3057.3,1.499]
[1764758455641,1.52452009,3057.4,3057.3,1.66251]
[1764758455845,0.75482009,3057.4,3057.3,1.66251]
[1764758456044,0.77460364,3057.5,3057.4,1.499]
[1764758456246,1.52932935,3057.5,3057.4,1.499]
[1764758456852,1.5277,3057.3,3057.2,1.499]
[1764758457950,0.7697,3057.3,3057.2,1.66251]
[1764758458147,1.53260364,3057.5,3057.4,1.499]
[1764758458346,1.5277,3057.2,3057.1,0.00343565]
[1764758458560,1.5277,3056.2,3056.1,2.3442785]
[1764758458850,6.64080833,3056.2,3056.1,0.7671]
[1764758459050,5.49020338,3056.2,3056.1,1.499]
[1764758459253,3.2078,3056.6,3056.5,0.7671]
[1764758459453,5.49166375,3056.6,3056.5,0.00332611]
[1764758460354,1.53093384,3056.6,3056.5,1.96452611]
[1764758460853,0.00323384,3056.6,3056.5,1.96452611]
[1764758461049,1.53093384,3056.6,3056.5,0.00332611]
[1764758461252,1.5277,3055.4,3055.3,2.3442785]
[1764758461549,1.5277,3055.2,3054.4,3.37146]
[1764758461751,1.5277,3054.8,3054.7,0.00490364]
[1764758462154,1.5277,3054.8,3054.7,1.50756563]
[1764758462350,1.53260364,3055.1,3055.0,0.7671]
[1764758462558,0.7697,3054.8,3054.7,1.50756563]
[1764758462858,1.5277,3054.8,3054.7,1.50756563]
[1764758463058,0.7542,3054.8,3054.7,1.51436563]
[1764758463560,1.4888,3054.8,3054.7,1.51436563]
[1764758463858,1.4888,3054.8,3054.7,1.51566563]
[1764758464066,0.00490364,3055.1,3054.7,1.51566563]
[1764758464257,1.4888,3054.8,3054.7,1.51566563]
[1764758464764,0.75910364,3055.1,3055.0,1.9482]
[1764758464970,1.49370364,3055.1,3055.0,1.9482]
[1764758465167,1.4888,3054.8,3054.7,0.77206199]
[1764758465460,1.4888,3054.8,3054.7,1.51566563]
[1764758465653,1.4888,3054.8,3054.7,0.00366199]
[1764758467662,1.7542,3054.5,3054.4,0.00490364]
[1764758468563,1.7542,3054.5,3054.4,0.00734297]
[1764758469859,1.4888,3054.1,3054.0,3.2078]
[1764758470062,1.4888,3054.1,3054.0,3.9762]
[1764758470265,1.4888,3054.1,3052.5,1.2095]
[1764758470266,22.8738,3054.1,3052.5,1.2095]
[1764758470558,3.2078,3053.3,3053.2,1.5071]
[1764758470761,3.2078,3054.1,3053.5,0.4411]
[1764758470962,3.21580122,3054.1,3053.5,0.4411]
[1764758471161,3.2078,3053.7,3053.2,0.00371139]
[1764758471458,3.2078,3053.7,3053.2,0.00861503]
[1764758471656,3.2078,3053.7,3053.5,0.4411]
[1764758471863,3.2078,3053.7,3053.6,0.7684]
[1764758472054,3.2078,3053.7,3053.5,0.4411]
[1764758472255,3.2078,3053.7,3053.6,0.00490364]
[1764758472763,3.2078,3053.7,3053.5,0.4411]
[1764758473462,3.2078,3053.7,3053.5,0.44600364]
[1764758474957,3.2078,3053.7,3053.6,1.5071]
[1764758476264,3.2078,3053.7,3053.5,1.21440364]
[1764758476765,3.2078,3053.7,3053.6,0.7684]
[1764758476958,3.2078,3053.7,3053.5,1.21440364]
[1764758477163,3.2078,3053.7,3053.6,0.7684]
[1764758478965,3.2078,3053.7,3053.5,0.4411]
[1764758479167,3.2078,3053.7,3053.5,0.44600364]
[1764758479552,3.2078,3053.7,3053.2,0.00371139]
[1764758479756,3.2078,3053.7,3053.5,0.4411]
[1764758482767,3.2078,3053.7,3053.6,1.51200364]
[1764758483265,3.2078,3053.7,3053.5,0.4411]
[1764758483468,3.2078,3053.7,3053.6,1.5071]
[1764758483667,3.2078,3053.7,3053.2,0.00371139]
[1764758483979,3.2078,3053.3,3053.2,0.00371139]
[1764758486566,44.0078,3053.3,3053.2,0.00371139]
[1764758486766,3.2078,3053.3,3053.2,1.51081139]
[1764758488170,3.2078,3053.7,3053.6,1.5071]
[1764758488370,3.95569871,3053.7,3053.6,1.5071]
[1764758488669,3.95569871,3053.7,3053.5,0.4411]
[1764758488874,3.2078,3053.7,3053.6,0.7684]
[1764758489072,3.95598493,3053.7,3053.6,0.7684]
[1764758489374,3.95598493,3053.7,3053.6,1.5071]
[1764758489673,3.95598493,3053.7,3053.5,0.4411]
[1764758489869,0.74818493,3053.6,3053.5,0.4411]
[1764758490176,0.74818493,3053.6,3053.5,1.2095]
[1764758490375,0.74818493,3053.6,3053.5,0.4411]
[1764758490671,0.74818493,3053.6,3053.5,1.2095]
[1764758490872,0.74818493,3053.6,3053.5,1.9482]
[1764758491172,40.80800122,3054.1,3053.5,1.9482]
[1764758491173,3.21580122,3054.1,3053.5,2.11191]
[1764758491471,0.74970268,3054.0,3053.5,1.2095]
[1764758491771,0.74970268,3053.9,3053.5,1.2095]
[1764758491971,0.74970268,3053.8,3053.5,1.2095]
[1764758492172,3.95750268,3053.7,3053.5,0.4411]
[1764758492369,0.74970268,3053.6,3053.5,0.4411]
[1764758494177,0.74970268,3053.6,3053.5,1.9584]
[1764758494675,0.74970268,3053.6,3053.5,2.12211]
[1764758494975,3.2078,3053.7,3053.6,1.4976]
[1764758495274,3.95810977,3053.7,3053.6,1.4976]
[1764758495775,3.2078,3053.7,3053.6,1.4976]
[1764758496076,3.21580122,3054.1,3054.0,1.9592]
[1764758496274,3.96639868,3054.1,3054.0,1.9592]
[1764758501581,0.75859868,3054.1,3054.0,5.167]
[1764758501879,3.2078,3054.6,3054.1,0.16367]
[1764758502074,3.2078,3054.6,3054.5,1.9901]
[1764758502274,3.95848908,3054.6,3054.5,1.9901]
[1764758502873,0.75484973,3054.6,3054.5,5.1979]
[1764758503078,0.00491191,3054.9,3054.8,1.5323]
[1764758503478,0.00491191,3054.9,3054.8,0.7303]
[1764758504181,0.00778579,3054.9,3054.8,0.7303]
[1764758506480,0.00778579,3054.9,3054.5,0.62146]
[1764758506682,0.00778579,3054.9,3054.5,1.35176]
[1764758507281,0.00778579,3054.9,3054.8,0.7303]
[1764758507484,0.00778579,3054.9,3054.8,1.5323]
[1764758508488,0.00778579,3054.9,3054.6,0.16365]
[1764758508686,0.00778579,3054.9,3054.2,0.00491191]
[1764758508886,3.2078,3054.5,3054.2,0.00491191]
[1764758509283,3.2078,3054.5,3054.0,0.4578]